Workbook

Sheet Début
B1: À propos du modèle
B2: Effectuez le suivi de vos dépenses mensuelles et épargnes à l’aide de ce modèle.
B3: Entrez les détails des dépenses dans le tableau et les revenus mensuels pour calculer vos économies.
B4: Le graphique en anneau montrant les dépenses et les épargnes est mis à jour automatiquement.
B5: Remarque :
B6: Des instructions supplémentaires sont disponibles dans la colonne A de la feuille de calcul de la ROUE DU BUDGET. Ce texte a été intentionnellement masqué. Pour supprimer le texte, sélectionnez la colonne A et choisissez SUPPRIMER. Pour afficher le texte, sélectionnez la colonne A et changez la couleur de la police.
B7: Pour en savoir plus sur un tableau, appuyez sur Maj, puis F10 à l’intérieur du tableau, sélectionnez l’option TABLEAU, enfin choisissez TEXTE DE REMPLACEMENT.

Sheet Roue du budget
B1: Roue du budget | D1: Remplissez le tableau dans ce modèle. Le graphique présente vos dépenses mensuelles par rapport à vos revenus mensuels. Il calcule également les pourcentages pour vous montrer combien vous avez économisé/épargné.
B2: Revenus Mensuels | G2: Épargne Montant
B3: 5,738 $ | G3: =Épargne -> 2,777 $
G4: Valeur calculée automatiquement
B6: Dépenses | C6: Catégorie | D6: Montant | E6: Fréquence | F6: Montant mensuel | G6: % du total
B7: Assurance | C7: Transport | D7: 300 $ | E7: Tous les 6 mois | F7: =IF(Dépenses[[#This Row],[Montant]]>0,IF(Dépenses[[#This Row],[Fréquence]]<>"",ROUND(IF(Dépenses[[#This Row],[Fréquence]]="Mensuel",Dépenses[Montant],IF(Dépenses[[#This Row],[Fréquence]]="Hebdomadaire",Dépenses[[#This Row],[Montant]]*4,IF(Dépenses[[#This Row],[Fréquence]]="Trimestre",Dépenses[[#This Row],[Montant]]/3,IF(Dépenses[[#This Row],[Fréquence]]="Tous les 6 mois",Dépenses[[#This Row],[Montant]]/6,IF(Dépenses[[#This Row],[Fréquence]]="Annuel",Dépenses[[#This Row],[Montant]]/12,IF(Dépenses[[#This Row],[Fréquence]]="Toutes les deux semaines",Dépenses[[#This Row],[Montant]]*2,IF(Dépenses[[#This Row],[Fréquence]]="Tous les deux mois",Dépenses[[#This Row],[Montant]]/2,""))))))),0),""),"") -> 50 $ | G7: =IF(Dépenses[[#This Row],[Montant mensuel]]<>"",Dépenses[[#This Row],[Montant mensuel]]/Revenus,"") -> 1%
B8: Gaz | C8: Transport | D8: 25 $ | E8: Hebdomadaire | F8: =IF(Dépenses[[#This Row],[Montant]]>0,IF(Dépenses[[#This Row],[Fréquence]]<>"",ROUND(IF(Dépenses[[#This Row],[Fréquence]]="Mensuel",Dépenses[Montant],IF(Dépenses[[#This Row],[Fréquence]]="Hebdomadaire",Dépenses[[#This Row],[Montant]]*4,IF(Dépenses[[#This Row],[Fréquence]]="Trimestre",Dépenses[[#This Row],[Montant]]/3,IF(Dépenses[[#This Row],[Fréquence]]="Tous les 6 mois",Dépenses[[#This Row],[Montant]]/6,IF(Dépenses[[#This Row],[Fréquence]]="Annuel",Dépenses[[#This Row],[Montant]]/12,IF(Dépenses[[#This Row],[Fréquence]]="Toutes les deux semaines",Dépenses[[#This Row],[Montant]]*2,IF(Dépenses[[#This Row],[Fréquence]]="Tous les deux mois",Dépenses[[#This Row],[Montant]]/2,""))))))),0),""),"") -> 100 $ | G8: =IF(Dépenses[[#This Row],[Montant mensuel]]<>"",Dépenses[[#This Row],[Montant mensuel]]/Revenus,"") -> 2%
B9: Prêt automobile | C9: Transport | D9: 200 $ | E9: Mensuel | F9: =IF(Dépenses[[#This Row],[Montant]]>0,IF(Dépenses[[#This Row],[Fréquence]]<>"",ROUND(IF(Dépenses[[#This Row],[Fréquence]]="Mensuel",Dépenses[Montant],IF(Dépenses[[#This Row],[Fréquence]]="Hebdomadaire",Dépenses[[#This Row],[Montant]]*4,IF(Dépenses[[#This Row],[Fréquence]]="Trimestre",Dépenses[[#This Row],[Montant]]/3,IF(Dépenses[[#This Row],[Fréquence]]="Tous les 6 mois",Dépenses[[#This Row],[Montant]]/6,IF(Dépenses[[#This Row],[Fréquence]]="Annuel",Dépenses[[#This Row],[Montant]]/12,IF(Dépenses[[#This Row],[Fréquence]]="Toutes les deux semaines",Dépenses[[#This Row],[Montant]]*2,IF(Dépenses[[#This Row],[Fréquence]]="Tous les deux mois",Dépenses[[#This Row],[Montant]]/2,""))))))),0),""),"") -> 200 $ | G9: =IF(Dépenses[[#This Row],[Montant mensuel]]<>"",Dépenses[[#This Row],[Montant mensuel]]/Revenus,"") -> 3%
B10: Prêt immobilier | C10: Domicile | D10: 1,600 $ | E10: Mensuel | F10: =IF(Dépenses[[#This Row],[Montant]]>0,IF(Dépenses[[#This Row],[Fréquence]]<>"",ROUND(IF(Dépenses[[#This Row],[Fréquence]]="Mensuel",Dépenses[Montant],IF(Dépenses[[#This Row],[Fréquence]]="Hebdomadaire",Dépenses[[#This Row],[Montant]]*4,IF(Dépenses[[#This Row],[Fréquence]]="Trimestre",Dépenses[[#This Row],[Montant]]/3,IF(Dépenses[[#This Row],[Fréquence]]="Tous les 6 mois",Dépenses[[#This Row],[Montant]]/6,IF(Dépenses[[#This Row],[Fréquence]]="Annuel",Dépenses[[#This Row],[Montant]]/12,IF(Dépenses[[#This Row],[Fréquence]]="Toutes les deux semaines",Dépenses[[#This Row],[Montant]]*2,IF(Dépenses[[#This Row],[Fréquence]]="Tous les deux mois",Dépenses[[#This Row],[Montant]]/2,""))))))),0),""),"") -> 1,600 $ | G10: =IF(Dépenses[[#This Row],[Montant mensuel]]<>"",Dépenses[[#This Row],[Montant mensuel]]/Revenus,"") -> 28%
B11: Abonnement câble | C11: Domicile | D11: 60 $ | E11: Mensuel | F11: =IF(Dépenses[[#This Row],[Montant]]>0,IF(Dépenses[[#This Row],[Fréquence]]<>"",ROUND(IF(Dépenses[[#This Row],[Fréquence]]="Mensuel",Dépenses[Montant],IF(Dépenses[[#This Row],[Fréquence]]="Hebdomadaire",Dépenses[[#This Row],[Montant]]*4,IF(Dépenses[[#This Row],[Fréquence]]="Trimestre",Dépenses[[#This Row],[Montant]]/3,IF(Dépenses[[#This Row],[Fréquence]]="Tous les 6 mois",Dépenses[[#This Row],[Montant]]/6,IF(Dépenses[[#This Row],[Fréquence]]="Annuel",Dépenses[[#This Row],[Montant]]/12,IF(Dépenses[[#This Row],[Fréquence]]="Toutes les deux semaines",Dépenses[[#This Row],[Montant]]*2,IF(Dépenses[[#This Row],[Fréquence]]="Tous les deux mois",Dépenses[[#This Row],[Montant]]/2,""))))))),0),""),"") -> 60 $ | G11: =IF(Dépenses[[#This Row],[Montant mensuel]]<>"",Dépenses[[#This Row],[Montant mensuel]]/Revenus,"") -> 1%
B12: Soirée ciné | C12: Loisirs | D12: 70 $ | E12: Mensuel | F12: =IF(Dépenses[[#This Row],[Montant]]>0,IF(Dépenses[[#This Row],[Fréquence]]<>"",ROUND(IF(Dépenses[[#This Row],[Fréquence]]="Mensuel",Dépenses[Montant],IF(Dépenses[[#This Row],[Fréquence]]="Hebdomadaire",Dépenses[[#This Row],[Montant]]*4,IF(Dépenses[[#This Row],[Fréquence]]="Trimestre",Dépenses[[#This Row],[Montant]]/3,IF(Dépenses[[#This Row],[Fréquence]]="Tous les 6 mois",Dépenses[[#This Row],[Montant]]/6,IF(Dépenses[[#This Row],[Fréquence]]="Annuel",Dépenses[[#This Row],[Montant]]/12,IF(Dépenses[[#This Row],[Fréquence]]="Toutes les deux semaines",Dépenses[[#This Row],[Montant]]*2,IF(Dépenses[[#This Row],[Fréquence]]="Tous les deux mois",Dépenses[[#This Row],[Montant]]/2,""))))))),0),""),"") -> 70 $ | G12: =IF(Dépenses[[#This Row],[Montant mensuel]]<>"",Dépenses[[#This Row],[Montant mensuel]]/Revenus,"") -> 1%
B13: Chaussures de sport | C13: Divers | D13: 300 $ | E13: Annuel | F13: =IF(Dépenses[[#This Row],[Montant]]>0,IF(Dépenses[[#This Row],[Fréquence]]<>"",ROUND(IF(Dépenses[[#This Row],[Fréquence]]="Mensuel",Dépenses[Montant],IF(Dépenses[[#This Row],[Fréquence]]="Hebdomadaire",Dépenses[[#This Row],[Montant]]*4,IF(Dépenses[[#This Row],[Fréquence]]="Trimestre",Dépenses[[#This Row],[Montant]]/3,IF(Dépenses[[#This Row],[Fréquence]]="Tous les 6 mois",Dépenses[[#This Row],[Montant]]/6,IF(Dépenses[[#This Row],[Fréquence]]="Annuel",Dépenses[[#This Row],[Montant]]/12,IF(Dépenses[[#This Row],[Fréquence]]="Toutes les deux semaines",Dépenses[[#This Row],[Montant]]*2,IF(Dépenses[[#This Row],[Fréquence]]="Tous les deux mois",Dépenses[[#This Row],[Montant]]/2,""))))))),0),""),"") -> 25 $ | G13: =IF(Dépenses[[#This Row],[Montant mensuel]]<>"",Dépenses[[#This Row],[Montant mensuel]]/Revenus,"") -> 0%
B14: Nourriture pour chien | C14: Divers | D14: 60 $ | E14: Mensuel | F14: =IF(Dépenses[[#This Row],[Montant]]>0,IF(Dépenses[[#This Row],[Fréquence]]<>"",ROUND(IF(Dépenses[[#This Row],[Fréquence]]="Mensuel",Dépenses[Montant],IF(Dépenses[[#This Row],[Fréquence]]="Hebdomadaire",Dépenses[[#This Row],[Montant]]*4,IF(Dépenses[[#This Row],[Fréquence]]="Trimestre",Dépenses[[#This Row],[Montant]]/3,IF(Dépenses[[#This Row],[Fréquence]]="Tous les 6 mois",Dépenses[[#This Row],[Montant]]/6,IF(Dépenses[[#This Row],[Fréquence]]="Annuel",Dépenses[[#This Row],[Montant]]/12,IF(Dépenses[[#This Row],[Fréquence]]="Toutes les deux semaines",Dépenses[[#This Row],[Montant]]*2,IF(Dépenses[[#This Row],[Fréquence]]="Tous les deux mois",Dépenses[[#This Row],[Montant]]/2,""))))))),0),""),"") -> 60 $ | G14: =IF(Dépenses[[#This Row],[Montant mensuel]]<>"",Dépenses[[#This Row],[Montant mensuel]]/Revenus,"") -> 1%
B15: Assurance animaux de compagnie | C15: Divers | D15: 70 $ | E15: Annuel | F15: =IF(Dépenses[[#This Row],[Montant]]>0,IF(Dépenses[[#This Row],[Fréquence]]<>"",ROUND(IF(Dépenses[[#This Row],[Fréquence]]="Mensuel",Dépenses[Montant],IF(Dépenses[[#This Row],[Fréquence]]="Hebdomadaire",Dépenses[[#This Row],[Montant]]*4,IF(Dépenses[[#This Row],[Fréquence]]="Trimestre",Dépenses[[#This Row],[Montant]]/3,IF(Dépenses[[#This Row],[Fréquence]]="Tous les 6 mois",Dépenses[[#This Row],[Montant]]/6,IF(Dépenses[[#This Row],[Fréquence]]="Annuel",Dépenses[[#This Row],[Montant]]/12,IF(Dépenses[[#This Row],[Fréquence]]="Toutes les deux semaines",Dépenses[[#This Row],[Montant]]*2,IF(Dépenses[[#This Row],[Fréquence]]="Tous les deux mois",Dépenses[[#This Row],[Montant]]/2,""))))))),0),""),"") -> 6 $ | G15: =IF(Dépenses[[#This Row],[Montant mensuel]]<>"",Dépenses[[#This Row],[Montant mensuel]]/Revenus,"") -> 0%
B16: Épicerie | C16: Aliments | D16: 100 $ | E16: Hebdomadaire | F16: =IF(Dépenses[[#This Row],[Montant]]>0,IF(Dépenses[[#This Row],[Fréquence]]<>"",ROUND(IF(Dépenses[[#This Row],[Fréquence]]="Mensuel",Dépenses[Montant],IF(Dépenses[[#This Row],[Fréquence]]="Hebdomadaire",Dépenses[[#This Row],[Montant]]*4,IF(Dépenses[[#This Row],[Fréquence]]="Trimestre",Dépenses[[#This Row],[Montant]]/3,IF(Dépenses[[#This Row],[Fréquence]]="Tous les 6 mois",Dépenses[[#This Row],[Montant]]/6,IF(Dépenses[[#This Row],[Fréquence]]="Annuel",Dépenses[[#This Row],[Montant]]/12,IF(Dépenses[[#This Row],[Fréquence]]="Toutes les deux semaines",Dépenses[[#This Row],[Montant]]*2,IF(Dépenses[[#This Row],[Fréquence]]="Tous les deux mois",Dépenses[[#This Row],[Montant]]/2,""))))))),0),""),"") -> 400 $ | G16: =IF(Dépenses[[#This Row],[Montant mensuel]]<>"",Dépenses[[#This Row],[Montant mensuel]]/Revenus,"") -> 7%
B17: Café | C17: Aliments | D17: 25 $ | E17: Hebdomadaire | F17: =IF(Dépenses[[#This Row],[Montant]]>0,IF(Dépenses[[#This Row],[Fréquence]]<>"",ROUND(IF(Dépenses[[#This Row],[Fréquence]]="Mensuel",Dépenses[Montant],IF(Dépenses[[#This Row],[Fréquence]]="Hebdomadaire",Dépenses[[#This Row],[Montant]]*4,IF(Dépenses[[#This Row],[Fréquence]]="Trimestre",Dépenses[[#This Row],[Montant]]/3,IF(Dépenses[[#This Row],[Fréquence]]="Tous les 6 mois",Dépenses[[#This Row],[Montant]]/6,IF(Dépenses[[#This Row],[Fréquence]]="Annuel",Dépenses[[#This Row],[Montant]]/12,IF(Dépenses[[#This Row],[Fréquence]]="Toutes les deux semaines",Dépenses[[#This Row],[Montant]]*2,IF(Dépenses[[#This Row],[Fréquence]]="Tous les deux mois",Dépenses[[#This Row],[Montant]]/2,""))))))),0),""),"") -> 100 $ | G17: =IF(Dépenses[[#This Row],[Montant mensuel]]<>"",Dépenses[[#This Row],[Montant mensuel]]/Revenus,"") -> 2%
B18: Équipement de l’alpinisme | C18: Loisirs | D18: 170 $ | E18: Annuel | F18: =IF(Dépenses[[#This Row],[Montant]]>0,IF(Dépenses[[#This Row],[Fréquence]]<>"",ROUND(IF(Dépenses[[#This Row],[Fréquence]]="Mensuel",Dépenses[Montant],IF(Dépenses[[#This Row],[Fréquence]]="Hebdomadaire",Dépenses[[#This Row],[Montant]]*4,IF(Dépenses[[#This Row],[Fréquence]]="Trimestre",Dépenses[[#This Row],[Montant]]/3,IF(Dépenses[[#This Row],[Fréquence]]="Tous les 6 mois",Dépenses[[#This Row],[Montant]]/6,IF(Dépenses[[#This Row],[Fréquence]]="Annuel",Dépenses[[#This Row],[Montant]]/12,IF(Dépenses[[#This Row],[Fréquence]]="Toutes les deux semaines",Dépenses[[#This Row],[Montant]]*2,IF(Dépenses[[#This Row],[Fréquence]]="Tous les deux mois",Dépenses[[#This Row],[Montant]]/2,""))))))),0),""),"") -> 14 $ | G18: =IF(Dépenses[[#This Row],[Montant mensuel]]<>"",Dépenses[[#This Row],[Montant mensuel]]/Revenus,"") -> 0%
B19: Abonnement salle de sport | C19: Divers | D19: 60 $ | E19: Mensuel | F19: =IF(Dépenses[[#This Row],[Montant]]>0,IF(Dépenses[[#This Row],[Fréquence]]<>"",ROUND(IF(Dépenses[[#This Row],[Fréquence]]="Mensuel",Dépenses[Montant],IF(Dépenses[[#This Row],[Fréquence]]="Hebdomadaire",Dépenses[[#This Row],[Montant]]*4,IF(Dépenses[[#This Row],[Fréquence]]="Trimestre",Dépenses[[#This Row],[Montant]]/3,IF(Dépenses[[#This Row],[Fréquence]]="Tous les 6 mois",Dépenses[[#This Row],[Montant]]/6,IF(Dépenses[[#This Row],[Fréquence]]="Annuel",Dépenses[[#This Row],[Montant]]/12,IF(Dépenses[[#This Row],[Fréquence]]="Toutes les deux semaines",Dépenses[[#This Row],[Montant]]*2,IF(Dépenses[[#This Row],[Fréquence]]="Tous les deux mois",Dépenses[[#This Row],[Montant]]/2,""))))))),0),""),"") -> 60 $ | G19: =IF(Dépenses[[#This Row],[Montant mensuel]]<>"",Dépenses[[#This Row],[Montant mensuel]]/Revenus,"") -> 1%
B20: Casque audio | C20: Loisirs | D20: 50 $ | E20: Annuel | F20: =IF(Dépenses[[#This Row],[Montant]]>0,IF(Dépenses[[#This Row],[Fréquence]]<>"",ROUND(IF(Dépenses[[#This Row],[Fréquence]]="Mensuel",Dépenses[Montant],IF(Dépenses[[#This Row],[Fréquence]]="Hebdomadaire",Dépenses[[#This Row],[Montant]]*4,IF(Dépenses[[#This Row],[Fréquence]]="Trimestre",Dépenses[[#This Row],[Montant]]/3,IF(Dépenses[[#This Row],[Fréquence]]="Tous les 6 mois",Dépenses[[#This Row],[Montant]]/6,IF(Dépenses[[#This Row],[Fréquence]]="Annuel",Dépenses[[#This Row],[Montant]]/12,IF(Dépenses[[#This Row],[Fréquence]]="Toutes les deux semaines",Dépenses[[#This Row],[Montant]]*2,IF(Dépenses[[#This Row],[Fréquence]]="Tous les deux mois",Dépenses[[#This Row],[Montant]]/2,""))))))),0),""),"") -> 4 $ | G20: =IF(Dépenses[[#This Row],[Montant mensuel]]<>"",Dépenses[[#This Row],[Montant mensuel]]/Revenus,"") -> 0%
B21: Coupe de cheveux | C21: Divers | D21: 70 $ | E21: Mensuel | F21: =IF(Dépenses[[#This Row],[Montant]]>0,IF(Dépenses[[#This Row],[Fréquence]]<>"",ROUND(IF(Dépenses[[#This Row],[Fréquence]]="Mensuel",Dépenses[Montant],IF(Dépenses[[#This Row],[Fréquence]]="Hebdomadaire",Dépenses[[#This Row],[Montant]]*4,IF(Dépenses[[#This Row],[Fréquence]]="Trimestre",Dépenses[[#This Row],[Montant]]/3,IF(Dépenses[[#This Row],[Fréquence]]="Tous les 6 mois",Dépenses[[#This Row],[Montant]]/6,IF(Dépenses[[#This Row],[Fréquence]]="Annuel",Dépenses[[#This Row],[Montant]]/12,IF(Dépenses[[#This Row],[Fréquence]]="Toutes les deux semaines",Dépenses[[#This Row],[Montant]]*2,IF(Dépenses[[#This Row],[Fréquence]]="Tous les deux mois",Dépenses[[#This Row],[Montant]]/2,""))))))),0),""),"") -> 70 $ | G21: =IF(Dépenses[[#This Row],[Montant mensuel]]<>"",Dépenses[[#This Row],[Montant mensuel]]/Revenus,"") -> 1%
B22: Jeux vidéo | C22: Loisirs | D22: 100 $ | E22: Mensuel | F22: =IF(Dépenses[[#This Row],[Montant]]>0,IF(Dépenses[[#This Row],[Fréquence]]<>"",ROUND(IF(Dépenses[[#This Row],[Fréquence]]="Mensuel",Dépenses[Montant],IF(Dépenses[[#This Row],[Fréquence]]="Hebdomadaire",Dépenses[[#This Row],[Montant]]*4,IF(Dépenses[[#This Row],[Fréquence]]="Trimestre",Dépenses[[#This Row],[Montant]]/3,IF(Dépenses[[#This Row],[Fréquence]]="Tous les 6 mois",Dépenses[[#This Row],[Montant]]/6,IF(Dépenses[[#This Row],[Fréquence]]="Annuel",Dépenses[[#This Row],[Montant]]/12,IF(Dépenses[[#This Row],[Fréquence]]="Toutes les deux semaines",Dépenses[[#This Row],[Montant]]*2,IF(Dépenses[[#This Row],[Fréquence]]="Tous les deux mois",Dépenses[[#This Row],[Montant]]/2,""))))))),0),""),"") -> 100 $ | G22: =IF(Dépenses[[#This Row],[Montant mensuel]]<>"",Dépenses[[#This Row],[Montant mensuel]]/Revenus,"") -> 2%
B23: Vêtements | C23: Divers | D23: 500 $ | E23: Annuel | F23: =IF(Dépenses[[#This Row],[Montant]]>0,IF(Dépenses[[#This Row],[Fréquence]]<>"",ROUND(IF(Dépenses[[#This Row],[Fréquence]]="Mensuel",Dépenses[Montant],IF(Dépenses[[#This Row],[Fréquence]]="Hebdomadaire",Dépenses[[#This Row],[Montant]]*4,IF(Dépenses[[#This Row],[Fréquence]]="Trimestre",Dépenses[[#This Row],[Montant]]/3,IF(Dépenses[[#This Row],[Fréquence]]="Tous les 6 mois",Dépenses[[#This Row],[Montant]]/6,IF(Dépenses[[#This Row],[Fréquence]]="Annuel",Dépenses[[#This Row],[Montant]]/12,IF(Dépenses[[#This Row],[Fréquence]]="Toutes les deux semaines",Dépenses[[#This Row],[Montant]]*2,IF(Dépenses[[#This Row],[Fréquence]]="Tous les deux mois",Dépenses[[#This Row],[Montant]]/2,""))))))),0),""),"") -> 42 $ | G23: =IF(Dépenses[[#This Row],[Montant mensuel]]<>"",Dépenses[[#This Row],[Montant mensuel]]/Revenus,"") -> 1%

Sheet Données (hidden)
A1: Cette feuille doit rester masquée
A2: Catégories | B2: Montant par catégorie | C2: Pourcentage du total | D2: Fréquence | E2: Épargne
A3: Domicile | B3: =IF(SUMIF(Dépenses[Catégorie],"Domicile",Dépenses[Montant mensuel])>0,SUMIF(Dépenses[Catégorie],"Domicile",Dépenses[Montant mensuel]),NA()) -> 1,660 $ | C3: =IF(B3>0,B3/Revenus,"") -> 29% | D3: Hebdomadaire | E3: =Revenus-SUM(Dépenses[Montant mensuel]) -> 2,777 $
A4: Loisirs | B4: =IF(SUMIF(Dépenses[Catégorie],"Loisirs",Dépenses[Montant mensuel])>0,SUMIF(Dépenses[Catégorie],"Loisirs",Dépenses[Montant mensuel]),NA()) -> 188 $ | C4: =IF(B4>0,B4/Revenus,"") -> 3% | D4: Mensuel
A5: Transport | B5: =IF(SUMIF(Dépenses[Catégorie],"Transport",Dépenses[Montant mensuel])>0,SUMIF(Dépenses[Catégorie],"Transport",Dépenses[Montant mensuel]),NA()) -> 350 $ | C5: =IF(B5>0,B5/Revenus,"") -> 6% | D5: Trimestre
A6: Aliments | B6: =IF(SUMIF(Dépenses[Catégorie],"Aliments",Dépenses[Montant mensuel])>0,SUMIF(Dépenses[Catégorie],"Aliments",Dépenses[Montant mensuel]),NA()) -> 500 $ | C6: =IF(B6>0,B6/Revenus,"") -> 9% | D6: Tous les 6 mois
A7: Divers | B7: =IF(SUMIF(Dépenses[Catégorie],"Divers",Dépenses[Montant mensuel])>0,SUMIF(Dépenses[Catégorie],"Divers",Dépenses[Montant mensuel]),NA()) -> 263 $ | C7: =IF(B7>0,B7/Revenus,"") -> 5% | D7: Annuel
A8: Épargne | B8: =IF(E3>0,E3,NA()) -> 2,777 $ | C8: =IF(B8>0,B8/Revenus,"") -> 48% | D8: Toutes les deux semaines
D9: Tous les deux mois
B10: TOTAL : | C10: =SUM(C3:C8) -> 100%
